Cogmind - Beta 13 @@@ ROGUE MODE // 2024.04.11 @ 09:02:53 Player: Jennifer Result: Self-destructed Performance ------------- Evolutions (2) 1000 Regions Visited (5) 1000 Robots Destroyed (38) 190 Value Destroyed (680) 680 Prototype IDs (23) 460 Alien Tech Used (0) 0 Bonus (300) 300 TOTAL SCORE: 3630 Bonus ------- Aligned with FarCom 300 Cogmind --------- Core Integrity 276/550 Matter 97/300 Energy 100/100 System Corruption 0% Temperature Cool (0) Movement Core (400) Ox7 Location -8/Materials Parts ------- > --- POWER (1) -------- (None) > --- PROPULSION (4) --- (None) > --- UTILITY (4) ------ Large Storage Unit Structural Scanner Supersonic Drone Bay (1/1) > --- WEAPON (2) ------- Assault Rifle > --- INVENTORY (15) --- Ion Engine Wheel Heavy Particle Cannon Peak State ------------ > --- POWER ------------ Ion Engine > --- PROPULSION ------- Wheel Wheel Wheel Compact Wheel > --- UTILITY ---------- Large Storage Unit Structural Scanner Seismic Detector Supersonic Drone Bay > --- WEAPON ----------- Assault Rifle Grenade Launcher > --- INVENTORY -------- Ion Engine Light Treads Light Treads Wheel Heavy Particle Cannon Assault Rifle Assault Rifle Mining Laser [Rating: 19] Favorites ----------- Power Ion Engine Engine Ion Engine Propulsion Wheel Treads Light Treads Wheel Wheel Utility Seismic Detector Device Seismic Detector Storage Small Storage Unit Weapon Assault Rifle Ballistic Gun Assault Rifle Launcher Grenade Launcher Special Weapon Mining Laser Build | -11 -10 -10 -10 -9 -8 ------- Run | Yrd Mat Min Exi Min Mat Slots Evolved 4 | . . . . . 4 Power . | . . . . . . Propulsion 2 | . . . . . 2 Utility 2 | . . . . . 2 Weapon . | . . . . . . Parts Attached 47 | 7 26 1 1 1 11 Power 3 | 1 2 . . . . Engine 3 | 1 2 . . . . Core . | . . . . . . Reactor . | . . . . . . Propulsion 24 | 2 17 . . 1 4 Treads 10 | . 8 . . . 2 Leg . | . . . . . . Wheel 14 | 2 9 . . 1 2 Hover . | . . . . . . Flight . | . . . . . . Utility 6 | 2 1 . 1 . 2 Device 4 | 1 . . 1 . 2 Storage 2 | 1 1 . . . . Processor . | . . . . . . Hackware . | . . . . . . Protection . | . . . . . . Artifact . | . . . . . . Weapon 14 | 2 6 1 . . 5 Energy Gun . | . . . . . . Energy Cannon . | . . . . . . Ballistic Gun 9 | 2 4 . . . 3 Ballistic Cannon . | . . . . . . Launcher 3 | . 1 1 . . 1 Special Weapon 2 | . 1 . . . 1 Impact Weapon . | . . . . . . Slashing Weapon . | . . . . . . Piercing Weapon . | . . . . . . Special Melee Weapon . | . . . . . . Unidentified Prototypes . | . . . . . . Parts Lost 13 | . . . . 1 12 Power 1 | . . . . . 1 Propulsion 7 | . . . . 1 6 Utility 1 | . . . . . 1 Weapon 4 | . . . . . 4 Highest Loss Streak 12 | . . . . 1 12 To Critical Strikes . | . . . . . . Average Slot Usage (%) 98 | . 100 100 100 99 87 Engine 13 | . 14 14 14 14 7 Treads 9 | . 14 . . . 1 Wheel 18 | . 13 28 28 27 27 Device 14 | . 14 14 14 14 24 Storage 13 | . 14 14 14 14 9 Ballistic Gun 21 | . 26 14 14 14 8 Launcher 4 | . . 14 14 14 4 Special Weapon 1 | . 1 . . . 4 Naked Turns . | . . . . . . Heaviest Build 33 | 14 30 31 31 31 33 Greatest Support 46 | 26 40 26 26 26 46 Greatest Overweight (x) 8 | . 1 1 1 1 8 Average Overweight (x) . | . . 1 1 1 . Largest Inventory Capacity 15 | 8 15 15 15 15 15 Average Capacity 10 | 7 8 15 15 15 15 Most Carried 11 | 4 8 8 9 11 10 Average Carried 7 | 2 7 8 8 9 6 Final Capacity 15 | 8 15 15 15 15 15 Final Carried 11 | 4 8 8 9 11 3 Class Distribution -------------------- 94% | Mutant 5% | Scavenger-Mutant Dominant Class ---------------- Mutant | -10/Materials Mutant | -10/Mines Mutant | -10/Exiles Mutant | -9/Mines Scavenger-Mutant | -8/Materials Resources | -11 -10 -10 -10 -9 -8 ----------- Run | Yrd Mat Min Exi Min Mat Matter Collected 868 | 250 508 52 . 23 35 Remotely . | . . . . . . Salvage Created 697 | 23 512 23 . 69 70 Parts 63 | 5 29 4 . 16 9 Haulers Intercepted . | . . . . . . Recyclers Shooed 2 | . . 1 . . 1 Parts Field Recycled . | . . . . . . Retrieved Matter . | . . . . . . Parts Self-Destructed . | . . . . . . Prevented . | . . . . . . Kills | -11 -10 -10 -10 -9 -8 ------- Run | Yrd Mat Min Exi Min Mat Combat Hostiles Destroyed 30 | . 14 1 . 8 7 Guns 14 | . 11 . . 1 2 AOE 16 | . 3 1 . 7 5 Classes Destroyed 7 | 1 3 2 . 1 . Worker 2 | . . . . 1 1 Builder 3 | . . 1 . 2 . Tunneler 2 | 1 1 . . . . Watcher 2 | . 2 . . . . Swarmer 17 | . 3 . . 8 6 Grunt 12 | . 11 . . . 1 Assembled 1 | . . 1 . . . Best Kill Streak 11 | 1 6 1 . 11 8 Combat Bots Only 8 | . 5 1 . 8 7 Max Kills in Single Turn 4 | 1 3 1 . 4 3 Gunslinging . | . . . . . . Exploded 3 | . 2 1 . 3 3 Melee . | . . . . . . Uniques/NPCs Destroyed . | . . . . . . Combat | -11 -10 -10 -10 -9 -8 -------- Run | Yrd Mat Min Exi Min Mat Hostile Shots Fired 158 | . 72 . . 14 72 Missed 44 | . 17 . . 5 22 Damage Taken 1541 | . 660 . . 99 782 Core 460 | . 164 . . 22 274 Absorbed by Shields . | . . . . . . Core Remaining (%) 62 | 100 . . . 25 . Volleys Fired 92 | 1 57 4 . 9 21 Largest 2 | 2 2 2 . 1 2 Hottest 120 | 40 120 50 . 30 100 Shots Fired 145 | 2 102 5 . 9 27 Gun 120 | 2 92 4 . 3 19 Cannon . | . . . . . . Launcher 15 | . 2 1 . 6 6 Special 10 | . 8 . . . 2 Kinetic 120 | 2 92 4 . 3 19 Thermal 10 | . 8 . . . 2 Explosive 15 | . 2 1 . 6 6 Electromagnetic . | . . . . . . Robot Hit Streak 9 | 1 9 4 . 2 9 Robot Miss Streak 2 | . 2 1 . 2 1 Penetration Max . | . . . . . . Secondary Targets 1 | . 1 . . . . Max Gunslinging Chain 1 | . 1 . . . . Shots Hit Robots 90 | 1 65 2 . 5 17 Core Hits 56 | 1 28 3 . 9 15 Critical Kills 1 | . 1 . . . . Critical Parts Destroyed . | . . . . . . Critical Strikes 1 | . 1 . . . . Destroy 1 | . 1 . . . . Melee Attacks . | . . . . . . Impact . | . . . . . . Slashing . | . . . . . . Piercing . | . . . . . . Sneak Attacks . | . . . . . . Combat Hostiles . | . . . . . . Follow-up Attacks . | . . . . . . Damage Inflicted 2342 | 14 1008 60 . 485 775 Guns 994 | 14 760 22 . 25 173 Cannons . | . . . . . . Explosions 1324 | . 224 38 . 460 602 Melee . | . . . . . . Ramming . | . . . . . . Kinetic 994 | 14 760 22 . 25 173 Thermal 24 | . 24 . . . . Explosive 1324 | . 224 38 . 460 602 Electromagnetic . | . . . . . . Impact . | . . . . . . Slashing . | . . . . . . Piercing . | . . . . . . Highest Corruption . | . . . . . . Average Corruption . | . . . . . . Corruption Purged . | . . . . . . Corruption Blocked . | . . . . . . Overload Shots . | . . . . . . Overflow Damage 134 | . 52 . . 61 21 Projectiles 13 | . 13 . . . . Explosions 121 | . 39 . . 61 21 Melee . | . . . . . . Knockbacks . | . . . . . . Impact . | . . . . . . Kinetic . | . . . . . . Secondary . | . . . . . . Self-Inflicted Damage 56 | . . . . 16 40 Shots 2 | . . . . 1 1 Rammed . | . . . . . . Targets Rammed . | . . . . . . Kicked . | . . . . . . Crushed . | . . . . . . Highest Temperature 60 | . 60 . . . . Average Temperature 17 | . 17 . . . . Received Heat Transfer 603 | . 345 . . 24 234 Siege Activations . | . . . . . . Robots Corrupted . | . . . . . . Combat Hostiles . | . . . . . . Parts Fried . | . . . . . . Impact Corruptions . | . . . . . . Robots Melted . | . . . . . . Combat Hostiles . | . . . . . . Parts Melted . | . . . . . . Heat Transferred 50 | . 50 . . . . Parts Sabotaged . | . . . . . . Parts Stolen . | . . . . . . Parts Stripped . | . . . . . . Power Chain Reactions . | . . . . . . Alert | -11 -10 -10 -10 -9 -8 ------- Run | Yrd Mat Min Exi Min Mat Peak Influence 287 | 5 279 88 . 287 250 Initial 111 | . 3 78 . . 111 Average 138 | 1 146 84 . 167 148 Maximum Alert Level 1 | . 1 . . 1 1 Low Security (%) 69 | 100 66 100 . 52 66 Level 1 30 | . 33 . . 47 33 Level 2 . | . . . . . . Level 3 . | . . . . . . Level 4 . | . . . . . . Level 5 . | . . . . . . High Security . | . . . . . . Max Security . | . . . . . . Squads Dispatched 5 | . 4 . . . 1 Investigation 3 | . 3 . . . . Extermination . | . . . . . . Reinforcement 2 | . 1 . . . 1 Assault . | . . . . . . Garrison . | . . . . . . Intercept . | . . . . . . Searches Triggered . | . . . . . . Construction Impeded . | . . . . . . Haulers Reinforced . | . . . . . . Active Scanning Responses . | . . . . . . Cargo Convoy Interrupts . | . . . . . . Stealth | -11 -10 -10 -10 -9 -8 --------- Run | Yrd Mat Min Exi Min Mat Distress Signals . | . . . . . . Communications Jammed . | . . . . . . Distress Signals . | . . . . . . Times Spotted 40 | . 21 . . 7 12 Peak Tracking Total 8 | . 6 . . 5 8 Tactical Retreats 2 | . 1 . . 1 . Traps | -11 -10 -10 -10 -9 -8 ------- Run | Yrd Mat Min Exi Min Mat Traps Triggered 2 | . 2 . . . . Indirectly . | . . . . . . Trap Hack Attempts . | . . . . . . Triggered . | . . . . . . Disarmed . | . . . . . . Reprogrammed . | . . . . . . Reused . | . . . . . . Traps Extracted . | . . . . . . Installed . | . . . . . . Triggered . | . . . . . . Machines | -11 -10 -10 -10 -9 -8 ---------- Run | Yrd Mat Min Exi Min Mat Machines Disabled . | . . . . . . Max in Single Turn . | . . . . . . Machines Repaired . | . . . . . . Machines Dismantled . | . . . . . . Machines Sabotaged . | . . . . . . Overloaded Fab Kills . | . . . . . . Hacking | -11 -10 -10 -10 -9 -8 --------- Run | Yrd Mat Min Exi Min Mat Machines Accessed 9 | . 7 . 1 . 1 Terminals 8 | . 7 . . . 1 Fabricators . | . . . . . . Repair Stations . | . . . . . . Recycling Units . | . . . . . . Scanalyzers . | . . . . . . Garrison Access . | . . . . . . Total Hacks 26 | . 21 . 1 . 4 Successful 11 | . 8 . 1 . 2 Failed 15 | . 13 . . . 2 Catastrophic 7 | . 7 . . . . Database Lockouts . | . . . . . . Manual 19 | . 15 . 1 . 3 Terminals 25 | . 21 . . . 4 Fabricators . | . . . . . . Repair Stations . | . . . . . . Recycling Units . | . . . . . . Scanalyzers . | . . . . . . Garrison Access . | . . . . . . Terminal Hacks 6 | . 4 . 1 . 1 Record 1 | . . . . . 1 Level Access Points 1 | . 1 . . . . Alert Level 1 | . 1 . . . . Locate Traps 1 | . 1 . . . . Hauler Manifests 1 | . 1 . . . . Derelict Proto ID Bank 1 | . . . 1 . . Fabricator Hacks . | . . . . . . Repair Station Hacks . | . . . . . . Recycling Unit Hacks . | . . . . . . Scanalyzer . | . . . . . . Garrison Access Hacks . | . . . . . . Unauthorized Hacks 5 | . 4 . . . 1 Terminals 5 | . 4 . . . 1 Botnet 5 | . 4 . . . 1 Fabricators . | . . . . . . Repair Stations . | . . . . . . Recycling Units . | . . . . . . Scanalyzers . | . . . . . . Garrison Access . | . . . . . . Data Cores Recovered . | . . . . . . Used . | . . . . . . Hacking Detections 8 | . 7 . . . 1 Full Trace Events 3 | . 3 . . . . Feedback Events . | . . . . . . Feedback Blocked . | . . . . . . Robot Schematics Acquired . | . . . . . . Robots Built . | . . . . . . Authchips . | . . . . . . Time . | . . . . . . Total Robot Build Rating . | . . . . . . Part Schematics Acquired . | . . . . . . Parts Built . | . . . . . . Authchips . | . . . . . . Time . | . . . . . . Total Part Build Rating . | . . . . . . Parts Repaired . | . . . . . . Time . | . . . . . . Parts Recycled . | . . . . . . Recycled Matter . | . . . . . . Retrieved Matter . | . . . . . . Retrieved Components . | . . . . . . Parts Scanalyzed . | . . . . . . Part Schematics Acquired . | . . . . . . Parts Damaged . | . . . . . . Bothacking | -11 -10 -10 -10 -9 -8 ------------ Run | Yrd Mat Min Exi Min Mat Used RIF Installer . | . . . . . . Robots Hacked . | . . . . . . Non-combat . | . . . . . . Combat . | . . . . . . Robot Hacks Applied . | . . . . . . Relay Couplers Released . | . . . . . . Fabnet Peak Effective % . | . . . . . . Robots Rewired . | . . . . . . Allies Hacked . | . . . . . . Hacks Repelled . | . . . . . . Allies | -11 -10 -10 -10 -9 -8 -------- Run | Yrd Mat Min Exi Min Mat Total Allies 2 | . . 2 . . . Largest Group 2 | . . 2 2 . . Highest-Rated Group 47 | . . 47 47 . . Highest-Rated Ally 31 | . . 31 31 . . Total Orders 4 | . . . 3 1 . EXPLORE 3 | . . . 2 1 . RETURN 1 | . . . 1 . . Ally Attacks . | . . . . . . Total Damage . | . . . . . . Kills . | . . . . . . Allies Corrupted . | . . . . . . Allies Melted . | . . . . . . Intel | -11 -10 -10 -10 -9 -8 ------- Run | Yrd Mat Min Exi Min Mat Robot Analysis Total . | . . . . . . Derelict Logs Recovered 2 | . . 1 . 1 . Drone Launches 2 | . . . 1 1 . Drone Recoveries 2 | . . . 1 1 . Exploration | -11 -10 -10 -10 -9 -8 ------------- Run | Yrd Mat Min Exi Min Mat Turns Passed 1921 | 57 1155 147 234 151 177 Spaces Moved 1320 | 45 779 110 214 119 53 Core 6 | 5 . . . . 1 Treads 266 | . 265 . . . 1 Legs . | . . . . . . Wheels 1048 | 40 514 110 214 119 51 Hover . | . . . . . . Flight . | . . . . . . Fastest Speed 50 | 50 90 105 105 105 85 Average Speed 109 | 84 114 105 105 105 93 Slowest Speed 450 | 90 160 105 105 115 450 Overloaded Moves . | . . . . . . Propulsion Burnouts . | . . . . . . Robots Hopped . | . . . . . . Cave-ins Triggered . | . . . . . . Exploration Rate (%) 45 | 4 97 40 91 37 5 Regions Visited 5 Branch Regions 3 Pre-discovered Areas . | . . . . . . Known Exits Taken . | . . . . . . Unknown Exits Taken 5 | 1 1 1 1 1 . Scrap Searched 1 | . . 1 . . . Spaces Dug 7 | . 5 . . . 2 Terrain Destroyed 114 | . 19 5 . 49 41 Melee . | . . . . . . Projectile 8 | . 6 . . . 2 AOE 106 | . 13 5 . 49 39 Terrain Rammed . | . . . . . . Walls Destroyed . | . . . . . . Machines Disabled . | . . . . . . Actions | -11 -10 -10 -10 -9 -8 --------- Run | Yrd Mat Min Exi Min Mat Total 1621 | 58 921 136 223 135 148 Wait 149 | 2 51 22 8 5 61 Move 1315 | 44 778 109 213 118 53 Hop . | . . . . . . Pick Up 11 | 4 4 . . 2 1 Fast Attach 14 | 7 4 . 1 1 1 Attach 8 | . . . . . 8 Detach 1 | . . . 1 . . Swap 25 | . 22 1 . . 2 Drop 6 | . 5 . . . 1 Fire 92 | 1 57 4 . 9 21 Melee . | . . . . . . Ram . | . . . . . . Kick . | . . . . . . Crush . | . . . . . . Escape Stasis . | . . . . . . Rewire . | . . . . . . Trap . | . . . . . . Miscellaneous . | . . . . . . Route ------- -11/Scrapyard -10/Materials (discovered 5 exits: *Mat x3 / [*Min x2]) -10/Mines (discovered 2 exits: *Mat / *Exi) -10/Exiles (discovered 2 exits: [*Min x2]) -9/Mines -8/Materials History --------- Turn | Location | Event 7 | -11/Scrapyard | Discovered new exit (range 14) 58 | -11/Scrapyard | Entered Materials 58 | -10/Materials | Discovered new exit (range 14) 317 | -10/Materials | Build established: Mutant 364 | -10/Materials | Discovered new exit (range 10) 592 | -10/Materials | Discovered new exit (range 16) 637 | -10/Materials | Core integrity fell below 50% 837 | -10/Materials | Discovered new exit (range 16) 999 | -10/Materials | Discovered new exit (range 3) 1020 | -10/Materials | Identified exit to Materials 1213 | -10/Materials | Entered Mines 1216 | -10/Mines | Assembled infested the area 1257 | -10/Mines | Met 8R-AWN 1298 | -10/Mines | Learned Materials security intel 1337 | -10/Mines | Discovered exit to Materials (range 11) 1350 | -10/Mines | Discovered new exit (range 5) 1360 | -10/Mines | Entered Exiles 1360 | -10/Exiles | Accompanied by 2 allies 1386 | -10/Exiles | Welcomed by 8R-AWN 1390 | -10/Exiles | Led the pair of lost Derelicts to a safe place 1405 | -10/Exiles | Met EX-HEX 1432 | -10/Exiles | Met EX-BIN 1446 | -10/Exiles | Aligned with FarCom system 1447 | -10/Exiles | Given EX-Vault access code 1474 | -10/Exiles | Opened EX-Vault 1483 | -10/Exiles | Found Supersonic Drone Bay 1490 | -10/Exiles | Discovered new exit (range 58) 1497 | -10/Exiles | Discovered new exit (range 64) 1516 | -10/Exiles | Warned to stay clear of 0b10 Research branches 1545 | -10/Exiles | Met EX-DEC 1594 | -10/Exiles | Left Exiles lab with Supersonic Drone Bay 1594 | -10/Exiles | Entered Mines 1664 | -9/Mines | Discovered new exit (range 17) 1699 | -9/Mines | Destroyed 8 combat bots 1745 | -9/Mines | Entered Materials 1745 | -8/Materials | Evolved 4 slots: Propulsion x2, Utility x2 1914 | -8/Materials | Destroyed 7 combat bots 1922 | -8/Materials | Self-destructed Last Messages --------------- 01906_ U-05 Engineer lays Concrete. 01907_ Acquired 35 matter. 01908_ U-05 Engineer builds a Wall. 01910_ The unstable cave ceiling collapses. 01912_ U-05 Engineer lays Concrete. 01913_ Assault Rifle destroyed. 01913_ U-05 Engineer lays Concrete. 01916_ The unstable cave ceiling collapses. 01916_ U-05 Engineer lays Concrete. 01917_ O-16 Technician uses terminal to summon reinforcements. 01917_ ALERT: Hostiles spotted, dispatching reinforcements to Terminal M010. 01917_ O-16 Technician locks terminal. 01917_ O-16 Technician cleans trojans from system. 01918_ U-05 Engineer builds a Wall. 01919_ U-05 Engineer lays Concrete. 01919_ Wheel destroyed. 01920_ U-05 Engineer lays Concrete. 01922_ U-05 Engineer builds a Wall. 01922_ U-05 Engineer lays Concrete. Map ----- +----------------------------------------------------+ | ??????????????????????????????????? | | ??????????????????????????????????? | | ??????????????????????????????????? | | ??????????????????????????????????? | | ??????????????????????????????????? | | ??????????????????????????????????? | | ??????????????????????????????????? | | ??????????????????????????????????? | | ??????????????????????????????????? | | ??????????????????????????????????? | | ??????????????????????????????????? | | ????????????????#####?????????????? | | ????????????????#####?????????????? | | ??????????????#### ########???????? | | ??????????????##################??? | | ??????????????## #######??? | | ??????????????## ## ##??? | | ??????????????## ## ##??? | | ??????????????## ## ##??? | | ??????????????## ## ##??? | | ??????????????## ## ##??? | | ??????????????## ## ###?? | | ??????????###### ## ###?? | | ??????????######### ##?? | | ???????? r um * *g ##?? | | ???????? !% [@[ T ##?? | | ????????w u% m g [ o ##?? | | ????????+###a%%## # ##?? | | ???????? ## # ### #####?? | | ??????????## #############?? | | ??????????## ## """####?####????? | | ??????????## ###"???????????????? | | ??????????## ??## ???????????????? | | ??????????## ?????????????????????? | | ??????????????????????????????????? | | ??????????????????????????????????? | | ??????????????????????????????????? | | ??????????????????????????????????? | | ??????????????????????????????????? | | ??????????????????????????????????? | | ??????????????????????????????????? | | ??????????????????????????????????? | | ??????????????????????????????????? | | ??????????????????????????????????? | | ??????????????????????????????????? | | ??????????????????????????????????? | | ??????????????????????????????????? | | ??????????????????????????????????? | | ??????????????????????????????????? | | ??????????????????????????????????? | +----------------------------------------------------+ Best States ------------- Heat Dissipation 31 Energy Generation 10 Energy Capacity 250 Matter Stores 300 Matter Capacity 300 Sight Range 16 Terrain Scan Density 10 Evasion (%) 44 Recoil Reduction 2 Item Schematics ----------------- None Robot Schematics ------------------ None Fabricated ------------ Nothing Alien Tech Used ----------------- None Achievements -------------- None Challenges ------------ None Game ------ Seed LinearSapperFlightbrick Manual? 0 Play Time 00:33:46 Cumulative 41.0 hours Start 2024.04.11 @ 08:14:25 End 2024.04.11 @ 09:02:53 Sessions 7 Manual Loads 0 Difficulty Rogue Special Mode None Game No. 61 Rogue 61 Adventurer 0 Explorer 0 Win Type - Total 0 Types 0/0/0/0/0/0/0/0/0 Lore% 17 Gallery% 26 Achievement% 26 Wizard Run 0 Options --------- Layout 0 ASCII 0 Keyboard 1 Movement Numpad Keybinds 0 Fullscreen 2 Font 18/Terminus Map View 76x50 Zoom Use 0% Tactical HUD 1 Map Filters NONE Filters NONE Steam 1 RUN: aa22f623-61a3-48fd-bb5c-b2e2ee52c02b